[Event "Championnat du monde jeunes U12F"]
[Date "2024.11.26"]
[White "Wang, Tianmu"]
[Black "Xia, Miaoyan"]
[WhiteElo "1640"]
[BlackElo "1711"]
[Round "11.25"]
[Result "1-0"]
[TimeControl "5400+30"]

1. e4 {[%clk 1:30:58]} 1... e5 {[%clk 1:30:54]} 2. Nf3 {[%clk 1:31:20]} 2... Nc6
{[%clk 1:31:15]} 3. Bc4 {[%clk 1:31:06]} 3... Nf6 {[%clk 1:31:33]} 4. Ng5 {[%clk
1:28:27]} 4... d5 {[%clk 1:31:50]} 5. exd5 {[%clk 1:28:25]} 5... Na5 {[%clk
1:31:45]} 6. Bb5+ {[%clk 1:27:55]} 6... c6 {[%clk 1:32:00]} 7. dxc6 {[%clk
1:27:26]} 7... bxc6 {[%clk 1:31:46]} 8. Bd3 {[%clk 1:24:01]} 8... Nd5 {[%clk
1:22:02]} 9. Nf3 {[%clk 1:19:52]} 9... Nf4 {[%clk 1:14:41]} 10. O-O {[%clk
1:14:31]} 10... Bd6 {[%clk 1:13:11]} 11. Re1 {[%clk 1:11:03]} 11... O-O {[%clk
1:10:50]} 12. Nc3 {[%clk 1:02:11]} 12... Bg4 {[%clk 1:01:44]} 13. Be2 {[%clk
0:58:34]} 13... f5 {[%clk 0:45:47]} 14. d3 {[%clk 0:50:41]} 14... Nxe2+ {[%clk
0:36:21]} 15. Qxe2 {[%clk 0:49:01]} 15... Qe7 {[%clk 0:27:38]} 16. Qe3 {[%clk
0:44:55]} 16... Rae8 {[%clk 0:25:06]} 17. h3 {[%clk 0:36:46]} 17... Bxf3 {[%clk
0:21:47]} 18. Qxf3 {[%clk 0:36:11]} 18... e4 {[%clk 0:19:36]} 19. dxe4 {[%clk
0:33:32]} 19... fxe4 {[%clk 0:18:58]} 20. Qe2 {[%clk 0:33:03]} 20... Qe5 {[%clk
0:17:23]} 21. g3 {[%clk 0:31:18]} 21... Qf5 {[%clk 0:16:51]} 22. h4 {[%clk
0:26:22]} 22... Nb7 {[%clk 0:10:58]} 23. Be3 {[%clk 0:23:06]} 23... a5 {[%clk
0:07:46]} 24. Qc4+ {[%clk 0:20:05]} 24... Kh8 {[%clk 0:07:42]} 25. Qxc6 {[%clk
0:15:25]} 25... Bc5 {[%clk 0:04:07]} 26. Qd5 {[%clk 0:12:11]} 26... Re5 {[%clk
0:02:36]} 27. Qd2 {[%clk 0:11:41]} 27... Re6 {[%clk 0:02:10]} 28. Bxc5 {[%clk
0:09:44]} 28... Nxc5 {[%clk 0:02:33]} 29. Qe3 {[%clk 0:09:03]} 29... Qe5 {[%clk
0:02:28]} 30. Rad1 {[%clk 0:08:35]} 30... Rc6 {[%clk 0:02:04]} 31. Rd5 {[%clk
0:07:39]} 31... Qe7 {[%clk 0:02:06]} 32. Qd4 {[%clk 0:06:41]} 32... h6 {[%clk
0:01:44]} 33. Re5 {[%clk 0:05:17]} 33... Qf6 {[%clk 0:01:45]} 34. Rd5 {[%clk
0:04:37]} 34... Qe7 {[%clk 0:01:53]} 35. Nxe4 {[%clk 0:03:19]} 35... Nxe4 {[%clk
0:01:42]} 36. Rxe4 {[%clk 0:03:30]} 36... Qf6 {[%clk 0:01:53]} 37. Qxf6 {[%clk
0:02:41]} 37... Rcxf6 {[%clk 0:02:00]} 38. Re2 {[%clk 0:02:53]} 38... Rb6 {[%clk
0:02:13]} 39. b3 {[%clk 0:03:06]} 39... Ra8 {[%clk 0:02:23]} 40. c4 {[%clk
0:03:15]} 40... a4 {[%clk 0:02:38]} 41. Re3 {[%clk 0:02:32]} 41... axb3 {[%clk
0:02:54]} 42. axb3 {[%clk 0:02:41]} 42... Ra3 {[%clk 0:03:02]} 43. Rdd3 {[%clk
0:02:59]} 43... Ra2 {[%clk 0:02:47]} 44. c5 {[%clk 0:02:05]} 44... Rc6 {[%clk
0:02:45]} 45. b4 {[%clk 0:02:15]} 45... Kg8 {[%clk 0:01:56]} 46. Rc3 {[%clk
0:02:18]} 46... Rb2 {[%clk 0:01:40]} 47. Rb3 {[%clk 0:02:00]} 47... Rd2 {[%clk
0:02:00]} 48. Rec3 {[%clk 0:01:59]} 48... Rf6 {[%clk 0:01:52]} 49. Rf3 {[%clk
0:02:15]} 49... Rc6 {[%clk 0:02:04]} 50. Kf1 {[%clk 0:01:06]} 50... Rd8 {[%clk
0:02:08]} 51. Rfc3 Rd5 {[%clk 0:02:06]} 52. Ke2 {[%clk 0:00:56]} 52... Kf7
{[%clk 0:02:26]} 53. Rd3 {[%clk 0:01:06]} 53... Ke6 {[%clk 0:02:14]} 54. Rxd5
{[%clk 0:01:04]} 54... Kxd5 {[%clk 0:02:37]} 55. Kd3 {[%clk 0:01:15]} 55... Rf6
{[%clk 0:02:50]} 56. f4 {[%clk 0:01:16]} 56... Rg6 {[%clk 0:02:28]} 57. Kc2
{[%clk 0:01:33]} 57... Kc6 {[%clk 0:02:39]} 58. Rc3 {[%clk 0:01:50]} 58... Re6
{[%clk 0:02:42]} 59. Kb3 {[%clk 0:01:59]} 59... Re7 {[%clk 0:02:53]} 60. Rd3
{[%clk 0:01:53]} 60... Kb5 {[%clk 0:03:05]} 61. Ka3 {[%clk 0:00:59]} 61... Ra7+
{[%clk 0:03:17]} 62. Kb3 {[%clk 0:01:17]} 62... Re7 {[%clk 0:03:36]} 63. Rc3
{[%clk 0:01:01]} 63... Kc6 {[%clk 0:03:54]} 64. Ka4 {[%clk 0:00:47]} 64... Ra7+
{[%clk 0:04:16]} 65. Kb3 {[%clk 0:01:15]} 65... Re7 {[%clk 0:04:42]} 66. Kc2
{[%clk 0:00:49]} 66... Re4 {[%clk 0:04:25]} 67. b5+ {[%clk 0:00:57]} 67... Kxb5
{[%clk 0:04:33]} 68. c6 {[%clk 0:01:19]} 68... Re8 {[%clk 0:04:40]} 69. c7
{[%clk 0:01:42]} 69... Rc8 {[%clk 0:05:08]} 70. Kd3 {[%clk 0:02:04]} 70... Kb6
{[%clk 0:05:26]} 71. Ke4 {[%clk 0:02:30]} 71... Kb7 {[%clk 0:05:42]} 72. Kf5
{[%clk 0:02:56]} 72... g5 {[%clk 0:05:51]} 73. fxg5 {[%clk 0:03:19]} 73... hxg5
{[%clk 0:06:16]} 74. hxg5 {[%clk 0:03:38]} 74... Rf8+ {[%clk 0:06:36]} 75. Kg4
{[%clk 0:04:00]} 75... Kc8 {[%clk 0:07:02]} 76. g6 {[%clk 0:04:23]} 76... Rg8
{[%clk 0:07:22]} 77. Kg5 {[%clk 0:04:51]} 77... Rf8 {[%clk 0:07:46]} 78. g7
{[%clk 0:05:17]} 78... Rg8 {[%clk 0:07:53]} 79. Kg6 {[%clk 0:05:43]} 1-0

[Variant "Standard"]
[Site "Europe Echecs"]

[Event "Championnat du monde jeunes U12F"]
[Date "2024.11.26"]
[White "Tursunalieva, Nurelina"]
[Black "Liang, Candice"]
[WhiteElo "1701"]
[BlackElo "1551"]
[Round "11.26"]
[Result "1/2-1/2"]
[TimeControl "5400+30"]

1. e4 {[%clk 1:30:58]} 1... c5 {[%clk 1:30:55]} 2. d4 {[%clk 1:31:25]} 2... cxd4
{[%clk 1:31:21]} 3. c3 {[%clk 1:31:51]} 3... dxc3 {[%clk 1:31:39]} 4. Nxc3
{[%clk 1:32:16]} 4... Nc6 {[%clk 1:31:48]} 5. Bc4 {[%clk 1:31:35]} 5... g6
{[%clk 1:31:16]} 6. Nf3 {[%clk 1:31:12]} 6... d6 {[%clk 1:30:18]} 7. e5 {[%clk
1:30:11]} 7... Bg7 {[%clk 1:25:53]} 8. exd6 {[%clk 1:29:30]} 8... Qxd6 {[%clk
1:25:19]} 9. Qxd6 {[%clk 1:29:32]} 9... exd6 {[%clk 1:25:44]} 10. O-O {[%clk
1:26:58]} 10... Nge7 {[%clk 1:25:16]} 11. Nb5 {[%clk 1:26:36]} 11... O-O {[%clk
1:24:32]} 12. Nxd6 {[%clk 1:26:22]} 12... Ne5 {[%clk 1:20:44]} 13. Bb3 {[%clk
1:13:39]} 13... Nxf3+ {[%clk 1:18:47]} 14. gxf3 {[%clk 1:14:02]} 14... Nf5
{[%clk 1:14:30]} 15. Bf4 {[%clk 1:07:10]} 15... Nxd6 {[%clk 1:07:56]} 16. Bxd6
{[%clk 1:07:21]} 16... Rd8 {[%clk 1:08:09]} 17. Rad1 {[%clk 1:06:30]} 17... Bxb2
{[%clk 1:06:26]} 18. Rfe1 {[%clk 1:05:20]} 18... Bf6 {[%clk 1:04:15]} 19. Be7
{[%clk 0:55:49]} 19... Rxd1 {[%clk 1:03:19]} 20. Bxd1 {[%clk 0:55:43]} 20...
Bxe7 {[%clk 1:02:44]} 21. Rxe7 {[%clk 0:55:47]} 21... Be6 {[%clk 1:02:51]} 22.
Bb3 {[%clk 0:54:39]} 22... Bxb3 {[%clk 1:02:42]} 23. axb3 {[%clk 0:55:04]} 23...
b5 {[%clk 1:02:19]} 24. Rb7 {[%clk 0:51:45]} 24... a6 {[%clk 1:02:27]} 25. Rb6
{[%clk 0:49:15]} 25... Kf8 {[%clk 1:01:30]} 26. Kf1 {[%clk 0:48:41]} 26... Ra7
{[%clk 1:00:43]} 27. Ke2 {[%clk 0:48:10]} 27... Re7+ {[%clk 0:59:57]} 28. Kd2
{[%clk 0:46:15]} 28... Re6 {[%clk 0:59:37]} 29. Rb8+ {[%clk 0:46:09]} 29... Ke7
{[%clk 0:59:56]} 30. Rb7+ {[%clk 0:46:18]} 30... Kf6 {[%clk 0:58:04]} 31. Kd3
{[%clk 0:43:34]} 31... Rc6 {[%clk 0:57:05]} 32. Kd2 {[%clk 0:41:56]} 32... h5
{[%clk 0:56:44]} 33. h4 {[%clk 0:35:42]} 33... Ke6 {[%clk 0:55:53]} 34. Kd3
{[%clk 0:28:45]} 34... f6 {[%clk 0:53:59]} 35. Ke4 {[%clk 0:25:28]} 35... Rc3
{[%clk 0:48:09]} 36. Rb6+ {[%clk 0:25:32]} 36... Ke7 {[%clk 0:48:24]} 37. Rxa6
{[%clk 0:25:11]} 37... Rxb3 {[%clk 0:48:43]} 38. Rb6 {[%clk 0:19:50]} 38... Rb4+
{[%clk 0:48:25]} 39. Ke3 {[%clk 0:20:02]} 39... Rb1 {[%clk 0:47:03]} 40. Ke4
{[%clk 0:18:55]} 40... b4 {[%clk 0:46:51]} 41. Rb7+ {[%clk 0:19:01]} 41... Kf8
{[%clk 0:46:27]} 42. Kd5 {[%clk 0:16:40]} 42... b3 {[%clk 0:42:44]} 43. Ke6
{[%clk 0:17:02]} 43... Rc1 {[%clk 0:31:22]} 44. Kxf6 {[%clk 0:16:00]} 44... Rc6+
{[%clk 0:31:26]} 45. Kg5 {[%clk 0:16:00]} 45... Rc3 {[%clk 0:30:26]} 46. f4
{[%clk 0:10:24]} 46... Rf3 {[%clk 0:29:16]} 1/2-1/2

[Variant "Standard"]
[Site "Europe Echecs"]

[Event "Championnat du monde jeunes U12F"]
[Date "2024.11.26"]
[White "Chovanec, Alice"]
[Black "Zavivaeva, Angelina"]
[WhiteElo "1694"]
[BlackElo "1499"]
[Round "11.27"]
[Result "1-0"]
[TimeControl "5400+30"]

1. d4 {[%clk 1:30:55]} 1... d5 {[%clk 1:31:23]} 2. c4 {[%clk 1:31:15]} 2... c6
{[%clk 1:31:50]} 3. Nc3 {[%clk 1:31:37]} 3... Nf6 {[%clk 1:32:15]} 4. e3 {[%clk
1:31:59]} 4... e6 {[%clk 1:32:42]} 5. Nf3 {[%clk 1:32:19]} 5... Bd6 {[%clk
1:33:07]} 6. Bd3 {[%clk 1:32:35]} 6... dxc4 {[%clk 1:33:34]} 7. Bxc4 {[%clk
1:32:49]} 7... b5 {[%clk 1:33:57]} 8. Bd3 {[%clk 1:32:52]} 8... Nbd7 {[%clk
1:34:24]} 9. O-O {[%clk 1:32:16]} 9... Bb7 {[%clk 1:34:45]} 10. e4 {[%clk
1:32:02]} 10... e5 {[%clk 1:29:06]} 11. dxe5 {[%clk 1:26:45]} 11... Nxe5 {[%clk
1:27:51]} 12. Nxe5 {[%clk 1:24:38]} 12... Bxe5 {[%clk 1:26:29]} 13. f4 {[%clk
1:22:24]} 13... Bd4+ {[%clk 1:17:44]} 14. Kh1 {[%clk 1:21:53]} 14... Qd7 {[%clk
1:12:46]} 15. e5 {[%clk 1:14:13]} 15... Nd5 {[%clk 0:53:49]} 16. Ne4 {[%clk
1:08:15]} 16... O-O {[%clk 0:29:27]} 17. Ng5 {[%clk 1:02:51]} 17... h6 {[%clk
0:16:03]} 18. Bh7+ {[%clk 0:53:24]} 18... Kh8 {[%clk 0:16:31]} 19. Qxd4 {[%clk
0:52:43]} 19... hxg5 {[%clk 0:09:55]} 20. Bc2 {[%clk 0:44:45]} 20... gxf4 {[%clk
0:03:34]} 21. Rxf4 {[%clk 0:42:25]} 21... Rfd8 {[%clk 0:02:54]} 22. Rh4+ {[%clk
0:40:13]} 22... Kg8 {[%clk 0:03:21]} 23. Bg5 {[%clk 0:39:22]} 23... f6 {[%clk
0:00:40]} 24. exf6 {[%clk 0:38:53]} 24... Kf7 {[%clk 0:00:34]} 25. fxg7 {[%clk
0:38:16]} 25... Ne7 {[%clk 0:00:33]} 26. Qf6+ {[%clk 0:37:56]} 1-0

[Variant "Standard"]
[Site "Europe Echecs"]

[Event "Championnat du monde jeunes U12F"]
[Date "2024.11.26"]
[White "Liu, Jingyu"]
[Black "Tu, Audrey"]
[WhiteElo "1680"]
[BlackElo "1765"]
[Round "11.28"]
[Result "0-1"]
[TimeControl "5400+30"]

1. d4 {[%clk 1:30:58]} 1... Nf6 {[%clk 1:30:54]} 2. c4 {[%clk 1:31:23]} 2... e6
{[%clk 1:31:21]} 3. Nc3 {[%clk 1:31:46]} 3... Bb4 {[%clk 1:31:46]} 4. e3 {[%clk
1:32:07]} 4... b6 {[%clk 1:31:57]} 5. Bd3 {[%clk 1:31:22]} 5... Bb7 {[%clk
1:32:07]} 6. Nf3 {[%clk 1:31:25]} 6... Ne4 {[%clk 1:30:25]} 7. Qc2 {[%clk
1:24:50]} 7... f5 {[%clk 1:27:19]} 8. a3 {[%clk 1:16:11]} 8... Bxc3+ {[%clk
1:25:33]} 9. bxc3 {[%clk 1:16:31]} 9... O-O {[%clk 1:23:46]} 10. O-O {[%clk
1:14:53]} 10... c5 {[%clk 1:16:06]} 11. Nd2 {[%clk 1:04:06]} 11... Nxd2 {[%clk
1:12:31]} 12. Bxd2 {[%clk 0:59:06]} 12... Qg5 {[%clk 1:09:21]} 13. e4 {[%clk
0:52:39]} 13... f4 {[%clk 0:59:57]} 14. f3 {[%clk 0:50:38]} 14... Nc6 {[%clk
0:51:38]} 15. Qb2 {[%clk 0:43:51]} 15... d6 {[%clk 0:44:15]} 16. Kh1 {[%clk
0:37:40]} 16... Qh5 {[%clk 0:38:46]} 17. Be1 {[%clk 0:24:52]} 17... e5 {[%clk
0:35:16]} 18. d5 {[%clk 0:22:09]} 18... Ne7 {[%clk 0:32:09]} 19. Qf2 {[%clk
0:15:44]} 19... Ng6 {[%clk 0:29:43]} 20. Ra2 {[%clk 0:15:12]} 20... Bc8 {[%clk
0:25:20]} 21. Rb2 {[%clk 0:12:05]} 21... Bd7 {[%clk 0:24:19]} 22. Bc2 {[%clk
0:10:27]} 22... Rfb8 {[%clk 0:20:02]} 23. Bd2 {[%clk 0:04:40]} 23... Rb7 {[%clk
0:14:36]} 24. Rfb1 {[%clk 0:03:51]} 24... Rab8 {[%clk 0:14:08]} 25. Bd3 {[%clk
0:03:14]} 25... Kf7 {[%clk 0:11:33]} 26. Kg1 {[%clk 0:02:15]} 26... Ke7 {[%clk
0:08:51]} 27. h3 {[%clk 0:00:35]} 27... h6 {[%clk 0:07:46]} 28. Kf1 {[%clk
0:00:42]} 28... Nh4 {[%clk 0:07:13]} 29. Ke2 {[%clk 0:00:57]} 29... a6 {[%clk
0:06:46]} 30. g4 {[%clk 0:00:56]} 30... fxg3 {[%clk 0:06:49]} 31. Qxg3 {[%clk
0:01:21]} 31... Rf8 {[%clk 0:06:22]} 32. Rf1 {[%clk 0:01:07]} 32... Ng6 {[%clk
0:06:18]} 33. Rh1 {[%clk 0:00:59]} 33... Kd8 {[%clk 0:04:37]} 34. Rbb1 {[%clk
0:01:10]} 34... Bc8 {[%clk 0:04:08]} 35. Be3 {[%clk 0:01:02]} 35... Rbf7 {[%clk
0:03:07]} 36. Rxb6 {[%clk 0:00:42]} 36... Nh4 {[%clk 0:02:16]} 37. Rxd6+ {[%clk
0:00:41]} 37... Ke8 {[%clk 0:02:07]} 38. Bf2 {[%clk 0:00:35]} 38... Rxf3 {[%clk
0:02:04]} 39. Qxg7 {[%clk 0:00:32]} 39... Rxf2+ {[%clk 0:02:16]} 40. Ke1 {[%clk
0:00:40]} 40... Ng2+ {[%clk 0:02:29]} 0-1

[Variant "Standard"]
[Site "Europe Echecs"]

[Event "Championnat du monde jeunes U12F"]
[Date "2024.11.26"]
[White "Lukin, Yesenia"]
[Black "Hrckova, Anna"]
[WhiteElo "1732"]
[BlackElo "1441"]
[Round "11.29"]
[Result "1-0"]
[TimeControl "5400+30"]

1. d4 {[%clk 1:30:51]} 1... d5 {[%clk 1:30:55]} 2. Bf4 {[%clk 1:31:14]} 2... c5
{[%clk 1:31:18]} 3. e3 {[%clk 1:31:28]} 3... Nc6 {[%clk 1:31:32]} 4. c3 {[%clk
1:31:50]} 4... Nf6 {[%clk 1:31:49]} 5. Bd3 {[%clk 1:32:01]} 5... Qb6 {[%clk
1:31:58]} 6. Qc1 {[%clk 1:31:10]} 6... g6 {[%clk 1:19:21]} 7. Nd2 {[%clk
1:30:46]} 7... c4 {[%clk 1:07:07]} 8. Bc2 {[%clk 1:31:05]} 8... Qa6 {[%clk
1:06:36]} 9. Ngf3 {[%clk 1:28:11]} 9... Bg7 {[%clk 1:04:39]} 10. h3 {[%clk
1:27:14]} 10... O-O {[%clk 1:04:43]} 11. O-O {[%clk 1:26:38]} 11... Re8 {[%clk
1:04:11]} 12. Re1 {[%clk 1:26:19]} 12... Nh5 {[%clk 1:01:32]} 13. Bh2 {[%clk
1:25:02]} 13... f5 {[%clk 1:01:46]} 14. Ne5 {[%clk 1:22:17]} 14... Nf6 {[%clk
0:47:45]} 15. f4 {[%clk 1:21:04]} 15... Nd7 {[%clk 0:47:30]} 16. Ndf3 {[%clk
1:20:22]} 16... Ndxe5 {[%clk 0:46:11]} 17. Nxe5 {[%clk 1:19:46]} 17... Nxe5
{[%clk 0:45:46]} 18. fxe5 {[%clk 1:17:54]} 18... Bd7 {[%clk 0:43:15]} 19. Bf4
{[%clk 1:14:49]} 19... b5 {[%clk 0:42:15]} 20. Kh2 {[%clk 1:12:33]} 20... e6
{[%clk 0:41:08]} 21. Rf1 {[%clk 1:11:45]} 21... Qb7 {[%clk 0:39:23]} 22. a3
{[%clk 1:10:32]} 22... a5 {[%clk 0:39:40]} 23. Qd2 {[%clk 1:10:33]} 23... a4
{[%clk 0:38:28]} 24. Qf2 {[%clk 1:08:54]} 24... h6 {[%clk 0:34:49]} 25. h4
{[%clk 1:05:13]} 25... Kh7 {[%clk 0:32:18]} 26. Rh1 {[%clk 1:04:46]} 26... Rh8
{[%clk 0:32:39]} 27. Kg1 {[%clk 1:03:38]} 27... Kg8 {[%clk 0:33:02]} 28. Qf3
{[%clk 1:01:25]} 28... Rc8 {[%clk 0:30:01]} 29. g4 {[%clk 0:59:17]} 29... Re8
{[%clk 0:27:14]} 30. gxf5 {[%clk 0:58:44]} 30... exf5 31. Kf2 {[%clk 0:58:34]}
31... Re6 {[%clk 0:26:04]} 32. Rag1 {[%clk 0:58:35]} 32... Be8 {[%clk 0:26:13]}
33. Qg2 {[%clk 0:50:57]} 33... Qd7 {[%clk 0:24:04]} 34. h5 {[%clk 0:46:20]}
34... Ra6 {[%clk 0:21:41]} 35. hxg6 {[%clk 0:44:15]} 35... Rxg6 {[%clk 0:21:44]}
36. Qh3 {[%clk 0:44:23]} 36... Rxg1 {[%clk 0:18:20]} 37. Rxg1 {[%clk 0:44:38]}
37... h5 {[%clk 0:18:21]} 38. Qxf5 {[%clk 0:43:12]} 38... Qxf5 {[%clk 0:17:59]}
39. Bxf5 {[%clk 0:43:34]} 39... Bc6 {[%clk 0:17:13]} 40. Bg5 {[%clk 0:43:08]}
40... Kf7 {[%clk 0:16:49]} 41. e6+ {[%clk 0:42:12]} 41... Ke8 {[%clk 0:17:06]}
42. Bg6+ {[%clk 0:42:21]} 42... Kf8 {[%clk 0:17:02]} 43. e7+ {[%clk 0:42:44]}
43... Kg8 {[%clk 0:17:27]} 44. e8=Q+ {[%clk 0:43:04]} 44... Bxe8 {[%clk
0:17:47]} 45. Bxe8 {[%clk 0:43:26]} 45... Kh7 {[%clk 0:17:59]} 46. Rh1 {[%clk
0:43:37]} 46... Rxe8 {[%clk 0:18:11]} 47. Bf4 {[%clk 0:43:08]} 47... Kg6 {[%clk
0:18:09]} 48. Rg1+ {[%clk 0:43:21]} 48... Kf5 {[%clk 0:14:15]} 49. Rxg7 {[%clk
0:43:26]} 49... h4 {[%clk 0:14:36]} 50. Rh7 {[%clk 0:43:46]} 50... Kg4 {[%clk
0:14:54]} 51. Rg7+ {[%clk 0:43:26]} 51... Kh3 {[%clk 0:14:37]} 52. Rg1 {[%clk
0:42:42]} 52... Rf8 {[%clk 0:14:28]} 53. Kf3 {[%clk 0:42:51]} 53... Rxf4+ 54.
exf4 {[%clk 0:42:57]} 54... Kh2 {[%clk 0:15:11]} 55. Rg4 {[%clk 0:43:08]} 55...
h3 {[%clk 0:15:25]} 56. Rh4 {[%clk 0:43:32]} 56... b4 {[%clk 0:15:37]} 57. axb4
{[%clk 0:43:39]} 57... a3 {[%clk 0:15:22]} 58. bxa3 {[%clk 0:43:59]} 58... Kh1
{[%clk 0:15:46]} 59. Rxh3+ {[%clk 0:44:22]} 59... Kg1 {[%clk 0:16:09]} 60. Rg3+
{[%clk 0:44:46]} 60... Kh2 {[%clk 0:16:18]} 61. f5 {[%clk 0:44:58]} 61... Kh1
{[%clk 0:16:30]} 62. f6 {[%clk 0:45:05]} 62... Kh2 {[%clk 0:16:52]} 63. f7
{[%clk 0:45:27]} 63... Kh1 {[%clk 0:17:16]} 64. f8=Q {[%clk 0:45:43]} 64... Kh2
{[%clk 0:17:38]} 65. Qh6# {[%clk 0:46:08]} 1-0

[Variant "Standard"]
[Site "Europe Echecs"]

[Event "Championnat du monde jeunes U12F"]
[Date "2024.11.26"]
[White "Ribreau, Anna"]
[Black "Anu, Bayart-Uchral"]
[WhiteElo "1726"]
[BlackElo "1624"]
[Round "11.30"]
[Result "1/2-1/2"]
[TimeControl "5400+30"]

1. c4 {[%clk 1:26:39]} 1... e5 {[%clk 1:30:44]} 2. g3 {[%clk 1:26:26]} 2... Nf6
{[%clk 1:30:48]} 3. Bg2 {[%clk 1:25:55]} 3... Nc6 {[%clk 1:30:36]} 4. Nc3 {[%clk
1:25:25]} 4... Be7 {[%clk 1:29:38]} 5. Nf3 {[%clk 1:24:50]} 5... O-O {[%clk
1:28:39]} 6. O-O {[%clk 1:24:20]} 6... d6 {[%clk 1:27:44]} 7. d3 {[%clk
1:22:47]} 7... Be6 {[%clk 1:26:45]} 8. Rb1 {[%clk 1:21:52]} 8... Ne8 {[%clk
1:22:09]} 9. b4 {[%clk 1:19:41]} 9... Qd7 {[%clk 1:21:25]} 10. b5 {[%clk
1:17:40]} 10... Nd8 {[%clk 1:21:19]} 11. Ng5 {[%clk 1:15:33]} 11... Bxg5 {[%clk
1:20:46]} 12. Bxg5 {[%clk 1:15:52]} 12... f6 {[%clk 1:20:58]} 13. Bd2 {[%clk
1:15:40]} 13... Bh3 {[%clk 1:20:44]} 14. Qb3 {[%clk 1:11:13]} 14... Bxg2 {[%clk
1:19:50]} 15. Kxg2 {[%clk 1:11:19]} 15... Ne6 {[%clk 1:18:33]} 16. Be3 {[%clk
1:03:47]} 16... f5 {[%clk 1:13:40]} 17. f4 {[%clk 0:55:00]} 17... Kh8 {[%clk
1:11:25]} 18. Kh1 {[%clk 0:52:59]} 18... Nf6 {[%clk 1:09:32]} 19. fxe5 {[%clk
0:47:01]} 19... dxe5 {[%clk 1:09:46]} 20. Nd5 {[%clk 0:41:31]} 20... f4 {[%clk
0:51:58]} 21. gxf4 {[%clk 0:37:41]} 21... Nxd5 {[%clk 0:51:20]} 22. cxd5 {[%clk
0:37:54]} 22... Nxf4 {[%clk 0:51:26]} 23. Bxf4 exf4 {[%clk 0:51:27]} 24. Qc4 Qd6
{[%clk 0:50:17]} 25. Rb4 {[%clk 0:34:36]} 25... Rae8 {[%clk 0:23:03]} 26. Rxf4
{[%clk 0:25:01]} 26... Rxe2 {[%clk 0:22:24]} 27. Rxf8+ {[%clk 0:24:46]} 27...
Qxf8 {[%clk 0:22:47]} 28. Qf4 {[%clk 0:24:57]} 28... Qc5 {[%clk 0:21:22]} 29.
Re4 {[%clk 0:20:46]} 29... Rxe4 {[%clk 0:21:08]} 30. dxe4 {[%clk 0:20:33]} 30...
h6 {[%clk 0:21:06]} 31. a4 {[%clk 0:20:02]} 31... Qd4 {[%clk 0:20:33]} 32. Qf8+
{[%clk 0:18:57]} 32... Kh7 {[%clk 0:20:56]} 33. Qf5+ {[%clk 0:19:11]} 33... Kh8
{[%clk 0:21:16]} 34. Qc8+ {[%clk 0:15:34]} 34... Kh7 {[%clk 0:21:27]} 35. Qxb7
{[%clk 0:13:29]} 35... Qxe4+ {[%clk 0:21:39]} 36. Kg1 {[%clk 0:13:51]} 36...
Qe1+ {[%clk 0:21:19]} 37. Kg2 {[%clk 0:14:04]} 37... Qe2+ {[%clk 0:21:23]} 38.
Kg3 {[%clk 0:14:14]} 38... Qe3+ {[%clk 0:21:47]} 39. Kg2 {[%clk 0:14:13]} 39...
Qe2+ {[%clk 0:22:09]} 40. Kg3 {[%clk 0:14:17]} 40... Qe3+ {[%clk 0:22:32]} 41.
Kg2 {[%clk 0:14:26]} 41... Qe2+ {[%clk 0:22:57]} 42. Kg3 {[%clk 0:14:29]}
1/2-1/2

[Variant "Standard"]
[Site "Europe Echecs"]

[Event "Championnat du monde jeunes U12F"]
[Date "2024.11.26"]
[White "Tsinjoviniavo, Aina Mahasambatra"]
[Black "Ordonez Alarcon, Daniela"]
[WhiteElo "1716"]
[BlackElo "1606"]
[Round "11.31"]
[Result "0-1"]
[TimeControl "5400+30"]

1. e4 {[%clk 1:30:40]} 1... e5 {[%clk 1:30:45]} 2. Nf3 {[%clk 1:31:05]} 2... Nc6
{[%clk 1:31:02]} 3. Bb5 {[%clk 1:31:24]} 3... a6 {[%clk 1:31:26]} 4. Ba4 {[%clk
1:31:49]} 4... Nf6 {[%clk 1:31:51]} 5. O-O {[%clk 1:32:03]} 5... Nxe4 {[%clk
1:31:28]} 6. Re1 {[%clk 1:32:15]} 6... Nc5 {[%clk 1:30:00]} 7. Bxc6 {[%clk
1:32:30]} 7... dxc6 {[%clk 1:29:56]} 8. d4 {[%clk 1:31:49]} 8... Ne6 {[%clk
1:29:52]} 9. Rxe5 {[%clk 1:31:37]} 9... Bd6 {[%clk 1:28:12]} 10. Re4 {[%clk
1:29:10]} 10... O-O {[%clk 1:27:03]} 11. Nc3 {[%clk 1:29:09]} 11... Re8 {[%clk
1:21:33]} 12. d5 {[%clk 1:25:47]} 12... cxd5 {[%clk 1:20:15]} 13. Qxd5 {[%clk
1:25:58]} 13... h6 {[%clk 1:15:28]} 14. Qh5 {[%clk 0:54:43]} 14... Qf6 {[%clk
1:05:40]} 15. Nd5 {[%clk 0:53:40]} 15... Qg6 {[%clk 1:05:09]} 16. Qxg6 {[%clk
0:54:01]} 16... fxg6 {[%clk 1:05:31]} 17. Nf4 {[%clk 0:51:22]} 17... Kf7 {[%clk
1:01:04]} 18. Ne5+ {[%clk 0:49:13]} 18... Bxe5 {[%clk 1:00:55]} 19. Rxe5 {[%clk
0:49:25]} 19... Nxf4 {[%clk 1:01:09]} 20. Bxf4 {[%clk 0:49:47]} 20... Rxe5
{[%clk 1:00:57]} 21. Bxe5 {[%clk 0:50:09]} 21... c6 {[%clk 1:01:08]} 22. Rd1
{[%clk 0:50:09]} 22... Bf5 {[%clk 1:01:09]} 23. c3 {[%clk 0:50:32]} 23... Re8
{[%clk 1:01:23]} 24. f4 {[%clk 0:50:22]} 24... g5 {[%clk 1:01:31]} 25. Kf2
{[%clk 0:50:31]} 25... gxf4 {[%clk 1:00:38]} 26. Bxf4 {[%clk 0:50:55]} 26... Bg4
{[%clk 0:54:03]} 27. Rd2 {[%clk 0:51:10]} 27... Be6 {[%clk 0:52:53]} 28. a3
{[%clk 0:51:27]} 28... Bd5 {[%clk 0:53:05]} 29. Rd4 {[%clk 0:49:40]} 29... Re4
{[%clk 0:52:05]} 30. g3 {[%clk 0:49:41]} 30... Rxd4 {[%clk 0:52:25]} 31. cxd4
{[%clk 0:50:06]} 31... g5 {[%clk 0:48:11]} 32. Bc7 {[%clk 0:50:10]} 32... Ke7
{[%clk 0:45:41]} 33. Ke3 {[%clk 0:47:08]} 33... h5 {[%clk 0:44:41]} 34. Kd3
{[%clk 0:44:38]} 34... Kd7 {[%clk 0:43:02]} 35. Ke3 {[%clk 0:43:59]} 35... Kxc7
{[%clk 0:43:22]} 36. h4 {[%clk 0:44:14]} 36... gxh4 {[%clk 0:43:40]} 37. gxh4
{[%clk 0:44:40]} 37... Kd6 {[%clk 0:43:55]} 38. Kf4 {[%clk 0:45:05]} 38... c5
{[%clk 0:44:10]} 39. dxc5+ {[%clk 0:45:28]} 39... Kxc5 {[%clk 0:44:36]} 40. Kg5
{[%clk 0:45:50]} 40... Bf3 {[%clk 0:44:59]} 0-1

[Variant "Standard"]
[Site "Europe Echecs"]